Cogmind - Beta 11 X6 @@@ ROGUE MODE // 2021.08.05 @ 18:45:15 Player: Luigi Panache Result: Destroyed by G-47 Trooper with Particle Gun Performance ------------- Evolutions (1) 500 Regions Visited (3) 600 Robots Destroyed (2) 10 Value Destroyed (78) 78 Prototype IDs (2) 40 Alien Tech Used (0) 0 Bonus (200) 200 TOTAL SCORE: 1428 Bonus ------- Pacifist 200 Cogmind --------- Core Integrity 0/400 Matter 262/300 Energy 92/100 System Corruption 0% Temperature Cool (9) Movement Core (50) Location -9/Storage Parts ------- > --- POWER (1) -------- (None) > --- PROPULSION (2) --- (None) > --- UTILITY (4) ------ Seismic Analyzer Seismic Analyzer > --- WEAPON (2) ------- Mini Grenade Launcher > --- INVENTORY (5) ---- Light Ion Engine Light Ion Engine Small Storage Unit Gravity Neutralizing Apparatus Rocket Launcher Peak State ------------ > --- POWER ------------ (None) > --- PROPULSION ------- (None) > --- UTILITY ---------- Seismic Analyzer Seismic Analyzer > --- WEAPON ----------- Guided EMP Blaster > --- INVENTORY -------- Light Ion Engine Light Ion Engine Small Storage Unit Gravity Neutralizing Apparatus Rocket Launcher [Rating: 15] Favorites ----------- Power None Propulsion None Utility Seismic Analyzer Device Gravity Neutralizing Apparatus Processor Seismic Analyzer Weapon Assault Rifle Ballistic Gun Assault Rifle Launcher Mini Grenade Launcher Build | -11 -10 -9 -9 ------- Run | Scr Mat Mat Sto Slots Evolved 2 | . . 2 . Power . | . . . . Propulsion . | . . . . Utility 2 | . . 2 . Weapon . | . . . . Parts Attached 8 | 2 2 . 4 Power . | . . . . Engine . | . . . . Core . | . . . . Reactor . | . . . . Propulsion . | . . . . Treads . | . . . . Leg . | . . . . Wheel . | . . . . Hover . | . . . . Flight . | . . . . Utility 3 | . 2 . 1 Device 1 | . . . 1 Storage . | . . . . Processor 2 | . 2 . . Hackware . | . . . . Protection . | . . . . Artifact . | . . . . Weapon 5 | 2 . . 3 Energy Gun . | . . . . Energy Cannon . | . . . . Ballistic Gun 2 | 2 . . . Ballistic Cannon . | . . . . Launcher 3 | . . . 3 Special Weapon . | . . . . Impact Weapon . | . . . . Slashing Weapon . | . . . . Piercing Weapon . | . . . . Special Melee Weapon . | . . . . Unidentified Prototypes 2 | . . . 2 Parts Lost 2 | . . . 2 Power . | . . . . Propulsion . | . . . . Utility . | . . . . Weapon 2 | . . . 2 Highest Loss Streak 2 | . . . 2 Average Slot Usage (%) 37 | . 38 44 33 Processor 16 | . 10 22 22 Ballistic Gun 19 | . 28 22 7 Launcher 1 | . . . 3 Naked Turns . | . . . . Heaviest Build 10 | 3 3 3 10 Greatest Support 3 | 3 3 3 3 Greatest Overweight (x) 3 | . . . 3 Average Overweight (x) . | . . . . Largest Inventory Capacity 5 | 5 5 5 5 Average Capacity 5 | 5 5 5 5 Most Carried 5 | 3 3 4 5 Average Carried 3 | 1 3 3 4 Final Capacity 5 | 5 5 5 5 Final Carried 5 | 3 3 4 5 Class Distribution -------------------- 100% | Mutant Dominant Class ---------------- Mutant | -10/Materials Mutant | -9/Materials Mutant | -9/Storage Resources | -11 -10 -9 -9 ----------- Run | Scr Mat Mat Sto Matter Collected 222 | 220 . . 2 Remotely . | . . . . Salvage Created 79 | . . . 79 Parts 6 | . . . 6 Haulers Intercepted . | . . . . Recyclers Shooed . | . . . . Parts Field Recycled . | . . . . Retrieved Matter . | . . . . Parts Self-Destructed . | . . . . Prevented . | . . . . Kills | -11 -10 -9 -9 ------- Run | Scr Mat Mat Sto Combat Hostiles Destroyed 2 | . . . 2 AOE 2 | . . . 2 Classes Destroyed 1 | . . . 1 Grunt 2 | . . . 2 Best Kill Streak 2 | . . . 2 Combat Bots Only 2 | . . . 2 Max Kills in Single Turn 2 | . . . 2 Gunslinging . | . . . . Exploded 2 | . . . 2 Melee . | . . . . Uniques/NPCs Destroyed . | . . . . Combat | -11 -10 -9 -9 -------- Run | Scr Mat Mat Sto Damage Taken 671 | . 163 10 498 Core 451 | . 46 . 405 Absorbed by Shields . | . . . . Core Remaining (%) 90 | 100 81 . . Volleys Fired 1 | . . . 1 Largest 1 | . . . 1 Hottest 30 | . . . 30 Shots Fired 1 | . . . 1 Gun . | . . . . Cannon . | . . . . Launcher 1 | . . . 1 Special . | . . . . Kinetic . | . . . . Thermal . | . . . . Explosive 1 | . . . 1 Electromagnetic . | . . . . Robot Hit Streak 1 | . . . 1 Robot Miss Streak . | . . . . Penetration Max . | . . . . Secondary Targets . | . . . . Shots Hit Robots 1 | . . . 1 Core Hits 2 | . . . 2 Critical Kills . | . . . . Critical Parts Destroyed . | . . . . Critical Strikes . | . . . . Melee Attacks . | . . . . Impact . | . . . . Slashing . | . . . . Piercing . | . . . . Sneak Attacks . | . . . . Combat Hostiles . | . . . . Follow-up Attacks . | . . . . Damage Inflicted 177 | . 35 . 142 Guns . | . . . . Cannons . | . . . . Explosions 128 | . . . 128 Melee . | . . . . Ramming 49 | . 35 . 14 Kinetic . | . . . . Thermal . | . . . . Explosive 128 | . . . 128 Electromagnetic . | . . . . Impact . | . . . . Slashing . | . . . . Piercing . | . . . . Highest Corruption . | . . . . Average Corruption . | . . . . Corruption Purged . | . . . . Overload Shots . | . . . . Overflow Damage . | . . . . Projectiles . | . . . . Explosions . | . . . . Melee . | . . . . Knockbacks . | . . . . Impact . | . . . . Kinetic . | . . . . Secondary . | . . . . Self-Inflicted Damage 69 | . 15 . 54 Shots 1 | . . . 1 Rammed 13 | . 10 . 3 Targets Rammed 13 | . 10 . 3 Kicked . | . . . . Crushed . | . . . . Highest Temperature 8 | . . . 8 Average Temperature 8 | . . . 8 Received Heat Transfer 207 | . . 6 201 Siege Activations . | . . . . Robots Corrupted . | . . . . Combat Hostiles . | . . . . Parts Fried . | . . . . Impact Corruptions . | . . . . Robots Melted . | . . . . Combat Hostiles . | . . . . Parts Melted . | . . . . Heat Transferred . | . . . . Parts Sabotaged . | . . . . Parts Stolen . | . . . . Parts Stripped . | . . . . Power Chain Reactions . | . . . . Missiles Intercepted . | . . . . Alert | -11 -10 -9 -9 ------- Run | Scr Mat Mat Sto Peak Influence 121 | . 60 25 121 Initial 25 | . . 25 10 Average 22 | . 27 25 26 Maximum Alert Level . | . . . . Low Security (%) 100 | 100 100 100 100 Level 1 . | . . . . Level 2 . | . . . . Level 3 . | . . . . Level 4 . | . . . . Level 5 . | . . . . High Security . | . . . . Max Security . | . . . . Squads Dispatched 4 | . 2 . 2 Investigation 3 | . 2 . 1 Extermination . | . . . . Reinforcement 1 | . . . 1 Assault . | . . . . Garrison . | . . . . Intercept . | . . . . Construction Impeded . | . . . . Haulers Reinforced . | . . . . Active Scanning Responses . | . . . . Cargo Convoy Interrupts . | . . . . Stealth | -11 -10 -9 -9 --------- Run | Scr Mat Mat Sto Distress Signals 1 | . . . 1 Communications Jammed . | . . . . Distress Signals . | . . . . Times Spotted 19 | . 3 1 15 Peak Tracking Total 12 | . 4 1 12 Tactical Retreats 2 | . 1 . 1 Traps | -11 -10 -9 -9 ------- Run | Scr Mat Mat Sto Traps Triggered 2 | . 1 . 1 Indirectly . | . . . . Trap Hack Attempts . | . . . . Triggered . | . . . . Disarmed . | . . . . Reprogrammed . | . . . . Reused . | . . . . Traps Extracted . | . . . . Installed . | . . . . Triggered . | . . . . Machines | -11 -10 -9 -9 ---------- Run | Scr Mat Mat Sto Machines Disabled 1 | . . . 1 Max in Single Turn 1 | . . . 1 Machines Sabotaged . | . . . . Garrisons Compromised . | . . . . Overloaded Fab Kills . | . . . . Fab Network Shutdowns . | . . . . Hacking | -11 -10 -9 -9 --------- Run | Scr Mat Mat Sto Machines Accessed 5 | . 2 . 3 Terminals 4 | . 1 . 3 Fabricators . | . . . . Repair Stations . | . . . . Recycling Units 1 | . 1 . . Scanalyzers . | . . . . Garrison Access . | . . . . Total Hacks 10 | . 2 . 8 Successful 4 | . 1 . 3 Failed 6 | . 1 . 5 Catastrophic 3 | . 1 . 2 Database Lockouts . | . . . . Manual 2 | . 2 . . Terminals 9 | . 1 . 8 Fabricators . | . . . . Repair Stations . | . . . . Recycling Units 1 | . 1 . . Scanalyzers . | . . . . Garrison Access . | . . . . Terminal Hacks 3 | . . . 3 Open Door 3 | . . . 3 Fabricator Hacks . | . . . . Repair Station Hacks . | . . . . Recycling Unit Hacks . | . . . . Scanalyzer . | . . . . Garrison Access Hacks . | . . . . Unauthorized Hacks 1 | . 1 . . Terminals . | . . . . Fabricators . | . . . . Repair Stations . | . . . . Recycling Units 1 | . 1 . . Tunnel 1 | . 1 . . Scanalyzers . | . . . . Garrison Access . | . . . . Data Cores Recovered . | . . . . Used . | . . . . Hacking Detections 3 | . 1 . 2 Full Trace Events 1 | . . . 1 Feedback Events . | . . . . Feedback Blocked . | . . . . Robot Schematics Acquired . | . . . . Robots Built . | . . . . Matter . | . . . . Time . | . . . . Total Robot Build Rating . | . . . . Part Schematics Acquired . | . . . . Parts Built . | . . . . Matter . | . . . . Time . | . . . . Total Part Build Rating . | . . . . Parts Repaired . | . . . . Time . | . . . . Parts Recycled . | . . . . Recycled Matter . | . . . . Retrieved Matter . | . . . . Retrieved Components . | . . . . Parts Scanalyzed . | . . . . Part Schematics Acquired . | . . . . Parts Damaged . | . . . . Bothacking | -11 -10 -9 -9 ------------ Run | Scr Mat Mat Sto Used RIF Installer . | . . . . Robots Hacked . | . . . . Non-combat . | . . . . Combat . | . . . . Robot Hacks Applied . | . . . . Relay Couplers Released . | . . . . Robots Rewired . | . . . . Allies Hacked . | . . . . Hacks Repelled . | . . . . Allies | -11 -10 -9 -9 -------- Run | Scr Mat Mat Sto Total Allies . | . . . . Largest Group . | . . . . Highest-Rated Group . | . . . . Highest-Rated Ally . | . . . . Total Orders . | . . . . Ally Attacks . | . . . . Total Damage . | . . . . Kills . | . . . . Allies Corrupted . | . . . . Allies Melted . | . . . . Intel | -11 -10 -9 -9 ------- Run | Scr Mat Mat Sto Robot Analysis Total . | . . . . Derelict Logs Recovered . | . . . . Drone Launches . | . . . . Drone Recoveries . | . . . . Exploration | -11 -10 -9 -9 ------------- Run | Scr Mat Mat Sto Turns Passed 208 | 32 86 23 67 Spaces Moved 345 | 52 146 44 103 Core 345 | 52 146 44 103 Treads . | . . . . Legs . | . . . . Wheels . | . . . . Hover . | . . . . Flight . | . . . . Fastest Speed 50 | 50 50 50 50 Average Speed 50 | 50 50 50 52 Slowest Speed 200 | 50 50 50 200 Overloaded Moves . | . . . . Propulsion Burnouts . | . . . . Robots Hopped . | . . . . Cave-ins Triggered . | . . . . Exploration Rate (%) 16 | 3 32 10 20 Regions Visited 3 Branch Regions 1 Pre-discovered Areas 1 | . 1 . . Known Exits Taken . | . . . . Unknown Exits Taken 3 | 1 1 1 . Scrap Searched . | . . . . Spaces Dug . | . . . . Terrain Destroyed 6 | . . . 6 Melee . | . . . . Projectile . | . . . . AOE 6 | . . . 6 Terrain Rammed . | . . . . Walls Destroyed . | . . . . Machines Disabled . | . . . . Actions | -11 -10 -9 -9 --------- Run | Scr Mat Mat Sto Total 371 | 56 157 44 114 Wait . | . . . . Move 342 | 51 145 43 103 Hop . | . . . . Pick Up 4 | 3 . 1 . Fast Attach 8 | 2 2 . 4 Attach . | . . . . Detach 1 | . . . 1 Swap . | . . . . Drop 2 | . . . 2 Fire 1 | . . . 1 Melee . | . . . . Ram 13 | . 10 . 3 Kick . | . . . . Crush . | . . . . Escape Stasis . | . . . . Rewire . | . . . . Trap . | . . . . Miscellaneous . | . . . . Route ------- -11/Scrapyard -10/Materials -9/Materials -9/Storage History --------- Turn | Location | Event 5 | -11/Scrapyard | Discovered new exit (range 16) 33 | -11/Scrapyard | Entered Materials 114 | -10/Materials | Discovered new exit (range 10) 119 | -10/Materials | Entered another Materials area 119 | -9/Materials | Evolved 2 slots: Utility x2 139 | -9/Materials | Discovered new exit (range 8) 142 | -9/Materials | Entered Storage 189 | -9/Storage | Core integrity fell below 50% 206 | -9/Storage | Core integrity fell below 20% 209 | -9/Storage | Destroyed by G-47 Trooper with Particle Gun Last Messages --------------- 00165_ Slammed into G-34 Mercenary. 00166_ Assault Rifle destroyed. 00167_ Lgt. Assault Rifle destroyed. 00171_ U-05 Engineer lays Concrete. 00178_ Connecting with Door Terminal... >>Open Sealed Heavy Doors opened. 00188_ Critical hit (Burn: +37). 00189_ Acquired Mni. Grenade Launcher. 00196_ Connecting with Door Terminal... >>Open Sealed Heavy Doors opened. 00197_ Dropped Mni. Grenade Launcher. 00198_ Acquired Prototype Launcher. 00198_ Identified Gui. EMP Blaster. 00203_ Dropped Gui. EMP Blaster. 00204_ Acquired Mni. Grenade Launcher. 00205_ G-34 Mercenary destroyed. 00205_ Door Terminal disabled. 00206_ Acquired 2 matter. Map ----- +----------------------------------------------------+ | ?????????????????????????????????????????????????? | | ?????????????????????????????????????????????????? | | ?????????????????????????????????????????????????? | | ?????????????????????????????????????????????????? | | ?????????????????????????????????????????????????? | | ?????????????????????????????????????????????????? | | ?????????????????????????????????????????????????? | | ?????????????????????????????????????????????????? | | ?????????????????????????????????????????????????? | | ?????????????????????????????????????????????????? | | ?????????????????????????????????????????????????? | | ?????????????????????????????????????????????????? | | ?????????????????????????????????????????????????? | | ?????????????????????????????????????????????????? | | ???????????????#######+#####?????????????????????? | | ???????????????# #?????????????????????? | | ???????????????# ??????????????????????? | | ???????????????# ??????????????????????? | | ???????????????# ???????????????????????? | | ???????????????? ????????????????????????? | | ????????????????? ?????????????????????????? | | ??????????????????? ??????????????????????????? | | ??????????????????###+###????????????????????????? | | ??????????????????# u###########??????????????? | | ??????????????????# Y #??????????????? | | ??????????????????# @g g= #??????????????? | | ??????????????????# g g*!! #??????????????? | | ??????????????????# Y### %####??????????????? | | ??????????????????## g##?# ] #?????????????????? | | ???????????????????# gu#??# # ##?????????????????? | | ???????????????????# #??###=#??????????????????? | | ??????????#######??# #????###??????????????????? | | ??????????#=== =???# #?????????????????????????? | | ??????????#=== =???# #?????????????????????????? | | ??????????# =???# #?????????????????????????? | | ??????????# ???# #?????????????????????????? | | ??????????## ##??# #?????????????????????????? | | ??????????# T#?## ##????????????????????????? | | ??????????# #??# #????????????????????????? | | ??????????####"#### #????????????????????????? | | ?????????????# T #????????????????????????? | | ?????????????# ## #????????????????????????? | | ?????????????# ## +????????????????????????? | | ?????????????# ########????????????????????????? | | ???????????? + #???????????????????????????????? | | ??????????? # #???????????????????????????????? | | ??????????"??# #???????????????????????????????? | | ?????????"???# #???????????????????????????????? | | ?????????????# #???????????????????????????????? | | ????????????## ##??????????????????????????????? | +----------------------------------------------------+ Best States ------------- Heat Dissipation 28 Energy Generation 5 Energy Capacity 100 Matter Stores 300 Matter Capacity 300 Sight Range 16 Terrain Scan Density 110 Evasion (%) 50 Item Schematics ----------------- None Robot Schematics ------------------ None Fabricated ------------ Nothing Alien Tech Used ----------------- None Achievements -------------- None Challenges ------------ None Game ------ Seed ThiefBombBoomstick Manual? 0 Play Time 00:03:58 Cumulative 407.8 hours Start 2021.08.05 @ 18:42:33 End 2021.08.05 @ 18:45:15 Sessions 1 Manual Loads 0 Difficulty Rogue Special Mode None Game No. 392 Rogue 177 Adventurer 112 Explorer 103 Win Type - Total 29 Types 21/0/5/2/0/0/0/1/0 Lore% 85 Gallery% 91 Achievement% 76 Wizard Run 0 Options --------- ASCII 0 Keyboard 0 Movement Numpad Keybinds 0 Fullscreen 2 Font 18/TerminusBold Map View 76x50 Tactical HUD 1 Map Filters NONE Filters NONE Steam 1 RUN: c9259ebe-a186-4849-bbf7-61db393a754c